bitfinex/quotes_ETHUSD_20241009
["timestamp","ask_amount","ask_price","bid_price","bid_amount"]
[1728438031264,4.858529,2469.9,2469.3,4.85721]
[1728438032490,8.907389,2469.9,2469.3,4.85721]
[1728438032871,4.858529,2469.9,2469.3,4.85721]
[1728438033054,8.09769,2469.9,2469.3,0.8075]
[1728438033666,4.0488,2469.9,2469.3,4.85721]
[1728438035097,4.0488,2469.9,2469.4,4.04948]
[1728438035473,4.0488,2469.9,2469.4,3.0]
[1728438038077,4.04895,2469.8,2469.4,3.0]
[1728438038780,4.04895,2469.8,2469.3,0.8075]
[1728438038781,4.04909,2469.7,2469.3,0.8075]
[1728438039687,4.0488,2469.9,2469.3,0.8075]
[1728438040011,4.0488,2469.9,2469.4,3.0]
[1728438040378,8.09766,2469.9,2469.4,3.0]
[1728438040590,4.0488,2469.9,2469.4,3.0]
[1728438040802,4.04892,2469.8,2469.4,3.0]
[1728438041620,4.04892,2469.8,2469.3,0.8075]
[1728438042911,4.0488,2469.9,2469.4,3.0]
[1728438043113,4.0488,2469.9,2469.4,7.04956]
[1728438043282,4.0488,2469.9,2469.4,3.0]
[1728438043912,4.04814,2470.3,2469.6,4.04907]
[1728438044211,4.04846,2470.1,2469.5,4.83509]
[1728438045013,8.09699,2470.1,2469.5,4.83509]
[1728438045821,8.097,2470.1,2469.5,4.83509]
[1728438046017,4.04846,2470.1,2469.5,4.83509]
[1728438046216,8.097,2470.1,2469.5,4.83509]
[1728438046523,4.04858,2470.0,2469.5,5.72354]
[1728438047221,4.04846,2470.1,2469.5,1.67415]
[1728438047383,4.04816,2470.3,2469.5,1.67415]
[1728438047384,4.80325,2470.5,2469.5,0.7857]
[1728438047582,4.04785,2470.5,2470.0,0.7546]
[1728438047798,4.04785,2470.5,2470.0,4.80317]
[1728438048513,4.04785,2470.5,2470.0,0.7546]
[1728438048712,4.04785,2470.5,2470.0,4.80316]
[1728438048939,4.04785,2470.5,2470.0,5.688352]
[1728438050035,4.04793,2470.4,2470.0,1.639792]
[1728438050232,4.04785,2470.5,2470.0,0.7546]
[1728438050547,0.759,2471.4,2470.0,0.7546]
[1728438050847,4.04705,2471.0,2470.4,4.04791]
[1728438051210,4.04705,2471.0,2470.5,4.04772]
[1728438051416,4.04678,2471.1,2470.6,4.04759]
[1728438051848,4.04678,2471.1,2470.5,0.7546]
[1728438052064,4.04681,2471.1,2470.5,3.7546]
[1728438052549,4.04681,2471.1,2470.5,7.80236]
[1728438052855,4.04696,2471.0,2470.5,5.0281203]
[1728438053025,4.04681,2471.1,2470.5,9.0758603]
[1728438053421,8.09372,2471.1,2470.5,9.0758603]
[1728438053643,4.04681,2471.1,2470.5,9.0758603]
[1728438053838,4.04681,2471.1,2470.6,5.44843033]
[1728438054014,4.04681,2471.1,2470.6,1.40087033]
[1728438055025,4.04652,2471.3,2470.6,5.44834033]
[1728438055356,4.04619,2471.5,2470.7,0.7769]
[1728438055657,4.04619,2471.5,2470.8,4.26493703]
[1728438055658,4.04648,2471.3,2470.8,4.26493703]
[1728438056030,4.04648,2471.3,2470.8,0.21777703]
[1728438057150,4.0462,2471.5,2470.8,0.21777703]
[1728438057359,4.0464,2471.4,2470.8,7.26490703]
[1728438057645,4.04645,2471.3,2470.9,1.2089137]
[1728438058539,8.09181,2471.7,2471.1,4.04669]
[1728438058861,8.09181,2471.7,2471.1,0.7831]
[1728438058862,4.04588,2471.7,2471.1,0.7831]
[1728438059064,4.04614,2471.5,2471.1,0.7831]
[1728438059653,4.04596,2471.6,2471.1,0.7831]
[1728438060229,4.04618,2471.5,2471.1,0.7831]
[1728438060531,4.04599,2471.6,2471.1,0.7831]
[1728438060848,4.04588,2471.7,2471.1,0.7831]
[1728438061021,4.04588,2471.7,2471.1,1.68698237]
[1728438061214,4.04606,2471.6,2471.1,1.68698237]
[1728438061422,4.04588,2471.7,2471.1,1.68698237]
[1728438061621,4.24436185,2471.9,2471.4,0.753]
[1728438061821,8.28998185,2471.9,2471.4,0.753]
[1728438062119,4.24436185,2471.9,2471.4,0.753]
[1728438062346,4.24436185,2471.9,2471.4,1.637593]
[1728438063523,4.04612,2471.5,2471.4,0.753]
[1728438063865,4.04694,2471.0,2470.9,0.751]
[1728438064367,4.04694,2471.0,2470.5,0.751]
[1728438064664,4.04679,2471.1,2470.5,1.230878]
[1728438064665,4.04714,2470.9,2470.5,1.230878]
[1728438064862,4.04697,2471.0,2470.5,1.230878]
[1728438065022,4.04697,2471.0,2470.5,4.230878]
[1728438065224,4.04679,2471.1,2470.5,4.230878]
[1728438065437,4.04679,2471.1,2470.6,0.8278658]
[1728438065755,4.04696,2471.0,2470.6,0.8278658]
[1728438066162,4.04679,2471.1,2470.6,0.8278658]
[1728438066861,4.04809,2470.3,2470.1,0.7847]
[1728438067422,4.04809,2470.3,2469.7,0.7847]
[1728438068129,4.04844,2470.1,2469.7,0.7847]
[1728438070882,4.04848,2470.1,2469.7,0.7847]
[1728438071121,4.04884,2469.9,2469.4,0.782]
[1728438071383,4.0472,2470.9,2470.2,4.04814]
[1728438071606,4.0472,2470.9,2470.4,0.782]
[1728438071748,4.939885,2470.9,2470.4,0.782]
[1728438072156,4.04731,2470.8,2470.4,0.782]
[1728438072894,4.939885,2470.9,2470.4,0.782]
[1728438073486,8.987135,2470.9,2470.4,0.782]
[1728438073785,4.04737,2470.8,2470.4,0.782]
[1728438074086,5.41882703,2470.8,2470.4,0.782]
[1728438074654,4.04747,2470.7,2470.2,0.7819]
[1728438074860,4.04764,2470.6,2470.2,0.7819]
[1728438075262,4.04747,2470.7,2470.2,0.7819]
[1728438075548,4.81428,2470.5,2469.9,0.7819]
[1728438076060,4.81428,2470.5,2469.9,4.83063]
[1728438076247,4.81428,2470.5,2469.9,0.7819]
[1728438076451,4.04794,2470.4,2469.9,0.7819]
[1728438076653,4.81428,2470.5,2469.9,4.83061]
[1728438076888,4.81428,2470.5,2469.9,0.7819]
[1728438077555,4.81428,2470.5,2469.9,4.83058]
[1728438078897,4.81428,2470.5,2470.0,4.04855]
[1728438079788,4.81088,2470.7,2470.0,4.04855]
[1728438079972,4.04748,2470.7,2470.0,4.04855]
[1728438080371,8.09507,2470.7,2470.0,4.04855]
[1728438080575,8.980917,2470.7,2470.0,4.04855]
[1728438080773,4.04765,2470.6,2470.0,4.04855]
[1728438084980,4.04777,2470.5,2470.0,4.04855]
[1728438085587,4.04777,2470.5,2469.9,1.669838]
[1728438085774,4.04777,2470.5,2469.9,4.83063]
[1728438086182,8.09564,2470.5,2469.9,4.83063]
[1728438086401,4.04777,2470.5,2469.9,0.7819]
[1728438086589,4.04792,2470.4,2469.9,0.7819]
[1728438086793,4.04814,2470.3,2469.7,0.7538]
[1728438087000,4.04851,2470.1,2469.7,0.7538]
[1728438087198,4.04826,2470.2,2469.7,0.7538]
[1728438088492,8.09664,2470.2,2469.7,0.7538]
[1728438088921,4.04844,2470.1,2469.7,0.7538]
[1728438089425,0.80967,2470.1,2469.7,0.7538]
[1728438089716,4.04844,2470.1,2469.7,0.7538]
[1728438090021,4.04858,2470.0,2469.7,0.7538]
[1728438090599,4.04826,2470.2,2469.7,0.7538]
[1728438090900,4.04876,2469.9,2469.4,0.8127]
[1728438091075,4.04907,2469.7,2469.1,4.86274]
[1728438091281,4.04907,2469.7,2469.1,0.8127]
[1728438091282,4.04926,2469.6,2469.1,0.8127]
[1728438092609,4.04926,2469.6,2469.1,3.8127]
[1728438093111,4.04907,2469.7,2469.1,7.86266]
[1728438093318,4.04907,2469.7,2469.1,9.053942]
[1728438094806,4.04849,2470.1,2469.4,4.04946]
[1728438095026,4.04859,2470.0,2469.5,0.7575]
[1728438097236,8.24169541,2470.1,2469.1,0.772]
[1728438097237,4.04924,2469.6,2469.1,0.772]
[1728438097608,4.04957,2469.4,2468.9,0.772]
[1728438097936,4.0499,2469.2,2468.9,0.772]
[1728438098304,8.09993,2469.2,2468.9,0.772]
[1728438098604,4.0499,2469.2,2468.9,0.772]
[1728438099020,4.04964,2469.4,2468.9,0.772]
[1728438099240,4.86711,2470.0,2469.4,4.04946]
[1728438099398,4.04853,2470.1,2469.6,0.772]
[1728438099846,4.04879,2469.9,2469.6,0.772]
[1728438100025,4.04891,2469.8,2469.6,0.772]
[1728438100226,4.04891,2469.8,2469.2,8.09954]
[1728438100227,4.04891,2469.8,2469.3,0.7882]
[1728438100422,4.88031,2469.8,2469.3,0.7882]
[1728438100627,4.04891,2469.8,2469.3,0.7882]
[1728438100817,4.04867,2470.0,2469.3,0.7882]
[1728438101145,4.04867,2470.0,2469.3,4.83785]
[1728438101344,4.04885,2469.9,2469.3,5.726632]
[1728438101822,4.0491,2469.7,2469.3,0.7882]
[1728438104498,4.04892,2469.8,2469.3,0.7882]
[1728438104732,8.09796,2469.8,2469.3,0.7882]
[1728438105613,4.04892,2469.8,2469.3,0.7882]
[1728438105957,3.68889733,2470.1,2469.5,0.7749]
[1728438105958,4.04858,2470.1,2469.5,0.7749]
[1728438106156,4.04858,2470.1,2469.5,5.306726]
[1728438106861,4.04859,2470.0,2469.5,1.257336]
[1728438107012,4.04859,2470.0,2469.5,0.7749]
[1728438107447,4.04859,2470.0,2469.5,4.82428]
[1728438107654,4.04859,2470.0,2469.5,0.7749]
[1728438107831,4.04859,2470.0,2469.5,4.8243]
[1728438109764,4.04835,2470.2,2469.5,4.8243]
[1728438109924,4.04844,2470.1,2469.5,4.8243]
[1728438112663,4.04844,2470.1,2469.5,5.711675]
[1728438112851,8.09675,2470.2,2469.6,4.04922]
[1728438113050,4.04845,2470.1,2469.6,4.04922]
[1728438115267,4.04835,2470.2,2469.7,0.7967]
[1728438115824,3.68889733,2470.3,2469.7,0.7967]
[1728438116544,4.04875,2469.9,2469.7,0.7967]
[1728438116882,4.04861,2470.0,2469.7,0.7967]
[1728438117842,4.04857,2470.1,2469.7,0.7967]
[1728438118875,0.2052828,2470.4,2469.7,0.7967]
[1728438118876,4.04801,2470.4,2469.8,4.04882]
[1728438119080,4.04801,2470.4,2469.8,4.938288]
[1728438119276,4.04801,2470.4,2469.9,0.7571]
[1728438119855,4.04809,2470.3,2469.9,0.7571]
[1728438120252,8.09629,2470.3,2469.9,0.7571]
[1728438120469,0.809629,2470.2,2469.9,0.7571]
[1728438120669,4.04851,2470.1,2469.9,0.7571]
[1728438121383,4.04816,2470.3,2469.9,0.7571]
[1728438121555,8.09635,2470.3,2469.9,0.7571]
[1728438122658,4.04838,2470.2,2469.9,0.7571]
[1728438124175,4.04816,2470.3,2469.9,0.7571]
[1728438124609,8.09639,2470.3,2469.9,0.7571]
[1728438124978,4.04816,2470.3,2469.9,0.7571]
[1728438125579,8.09635,2470.3,2469.9,0.7571]
[1728438126403,4.04827,2470.2,2469.9,0.7571]
[1728438126604,4.04816,2470.3,2469.9,0.7571]
[1728438126805,8.09641,2470.3,2469.9,0.7571]
[1728438126969,4.04816,2470.3,2469.9,0.7571]
[1728438128115,4.81648,2471.0,2470.3,4.04795]
[1728438128281,4.04729,2470.8,2470.2,4.04812]
[1728438128483,4.04729,2470.8,2470.3,0.8055]
[1728438129266,3.68889733,2470.9,2470.3,0.8055]
[1728438129472,5.01938877,2471.2,2470.3,0.8055]
[1728438129473,4.47539733,2470.7,2470.3,0.8055]
[1728438129743,4.04776,2470.5,2469.9,7.84582]
[1728438130029,4.04797,2470.4,2469.9,3.7971]
[1728438130583,4.04776,2470.5,2469.9,7.84575]
[1728438130810,4.04776,2470.5,2470.0,1.189456]
[1728438131120,4.0476,2470.6,2470.1,3.8126]
[1728438132013,3.68889733,2470.5,2470.1,0.8126]
[1728438132199,4.04825,2470.2,2469.7,0.795]
[1728438132875,4.04825,2470.2,2469.7,4.84406]
[1728438133417,0.8008,2470.6,2470.0,3.0]
[1728438133418,4.0477,2470.6,2470.0,3.0]
[1728438133619,4.04798,2470.4,2470.0,0.767]
[1728438134890,4.04789,2470.5,2470.0,0.767]
[1728438135201,4.04789,2470.5,2470.0,4.548572]
[1728438136103,8.09577,2470.5,2470.0,4.548572]
[1728438136306,4.04787,2470.5,2470.0,3.767]
[1728438136632,4.04794,2470.4,2470.0,3.767]
[1728438137213,4.04787,2470.5,2470.0,0.767]
[1728438137529,4.04826,2470.2,2469.8,0.7809]
[1728438138121,8.09661,2470.2,2469.8,0.7809]
[1728438138490,4.04826,2470.2,2469.8,0.7809]
[1728438138690,8.09696,2470.1,2469.6,3.8228]
[1728438139003,4.04844,2470.1,2469.6,3.8228]
[1728438139206,4.04844,2470.1,2469.6,5.014937]
[1728438139613,8.097,2470.1,2469.6,5.014937]
[1728438140206,4.0487,2470.0,2469.6,0.8228]
[1728438140402,4.04875,2469.9,2469.6,0.8228]
[1728438140602,4.04844,2470.1,2469.6,0.8228]
[1728438140832,4.04864,2470.0,2469.6,0.8228]
[1728438140996,4.04864,2470.0,2469.6,3.8228]
[1728438142204,4.04817,2470.3,2469.6,4.610018]
[1728438142405,0.20050018,2470.4,2469.8,0.8307]
[1728438142638,0.20050018,2470.4,2469.8,4.87949]
[1728438142639,4.24852018,2470.4,2469.8,4.87949]
[1728438142822,0.20050018,2470.4,2470.0,4.04855]
[1728438143021,0.7764,2471.2,2470.5,4.04773]
[1728438143213,4.04652,2471.3,2470.6,4.87815]
[1728438143418,4.82006173,2471.3,2470.7,4.0473]
[1728438143600,4.04652,2471.3,2470.8,4.04725]
[1728438143793,4.04652,2471.3,2470.9,0.8307]
[1728438144234,4.24631134,2471.5,2470.9,0.8307]
[1728438144418,4.04639,2471.4,2470.9,0.8307]
[1728438145946,4.04646,2471.3,2470.9,0.8307]
[1728438146103,4.04694,2471.0,2470.9,0.8307]
[1728438146297,8.09402,2471.0,2470.5,0.7814]
[1728438146541,4.933532,2471.0,2470.5,0.7814]
[1728438147528,4.04711,2470.9,2470.5,0.7814]
[1728438148022,4.933532,2471.0,2470.5,0.7814]
[1728438148342,4.04712,2470.9,2470.5,0.7814]
[1728438148498,4.0476,2470.6,2470.2,3.8066]
[1728438148695,4.04763,2470.6,2470.2,0.8066]
[1728438149657,0.8980652,2470.8,2470.2,0.8066]
[1728438149658,4.04778,2470.5,2470.2,0.8066]
[1728438150239,4.04793,2470.4,2470.2,0.8066]
[1728438150455,4.04778,2470.5,2470.2,0.8066]
[1728438152315,3.68889733,2470.3,2469.6,0.7514]
[1728438152505,4.04839,2470.2,2469.6,0.7514]
[1728438153040,8.09638,2470.3,2469.6,0.7514]
[1728438153206,4.04819,2470.3,2469.7,4.04903]
[1728438153560,4.57704633,2470.5,2470.0,0.7693]
[1728438153561,4.04785,2470.5,2470.0,0.7693]
[1728438153901,4.04793,2470.4,2470.0,0.7693]
[1728438154839,4.04785,2470.5,2470.0,0.7693]
[1728438155716,4.04683,2471.1,2470.3,4.04805]
[1728438155921,4.49169733,2471.3,2470.6,4.04749]
[1728438155922,0.404683,2471.0,2470.6,4.04749]
[1728438156139,4.04666,2471.2,2470.8,0.8206]
[1728438157324,4.04655,2471.3,2470.8,0.8206]
[1728438157636,4.98330175,2471.3,2470.8,0.8206]
[1728438157938,4.04655,2471.3,2470.8,0.8206]
[1728438158141,4.04655,2471.3,2470.8,4.86785]
[1728438158600,4.04667,2471.2,2470.8,0.8206]
[1728438158802,4.04655,2471.3,2470.8,0.8206]
[1728438159506,4.04655,2471.3,2470.8,1.307406]
[1728438161074,3.68889733,2471.9,2470.9,0.7545]
[1728438161286,4.04551,2471.9,2470.9,6.68889733]
[1728438161435,4.04556,2471.9,2471.4,0.7545]
[1728438164934,4.04556,2471.9,2471.4,3.7545]
[1728438166493,4.04568,2471.8,2471.4,0.7545]
[1728438167235,4.04556,2471.9,2471.4,0.7545]
[1728438167452,4.04566,2471.8,2471.4,0.7545]
[1728438167881,8.09046,2472.1,2471.4,7.80075]
[1728438168141,4.04495,2472.3,2471.7,0.7826]
[1728438168342,4.04501,2472.2,2471.7,0.7826]
[1728438169153,4.04484,2472.3,2471.8,4.04563]
[1728438169337,3.68889733,2472.5,2471.6,4.04584]
[1728438169338,4.04459,2472.5,2471.9,0.7922]
[1728438169691,4.04498,2472.2,2471.9,0.7922]
[1728438170340,4.04491,2472.3,2471.9,0.7922]
[1728438170578,4.04457,2472.5,2471.9,0.7922]
[1728438170771,4.531887,2472.4,2471.9,0.7922]
[1728438171145,4.04468,2472.4,2471.9,0.7922]
[1728438171662,4.04457,2472.5,2471.9,0.7922]
[1728438171875,8.08918,2472.5,2471.9,0.7922]
[1728438172174,4.04465,2472.4,2471.9,0.7922]
[1728438173353,4.04457,2472.5,2471.9,0.7922]
[1728438173684,4.04499,2472.2,2471.9,0.7922]
[1728438174179,8.08985,2472.3,2471.9,0.7922]
[1728438174367,4.04501,2472.2,2471.9,0.7922]
[1728438175580,4.04524,2472.1,2471.9,0.7922]
[1728438175888,8.495034,2472.1,2471.9,0.7922]
[1728438176089,4.04524,2472.1,2471.9,0.7922]
[1728438176551,8.09049,2472.1,2471.9,0.7922]
[1728438176754,4.0453,2472.0,2471.9,0.7922]
[1728438177479,4.04524,2472.1,2471.9,0.7922]
[1728438177851,4.04563,2471.9,2471.6,0.7558]
[1728438178045,4.04579,2471.7,2471.6,0.7558]
[1728438178379,4.09342133,2472.1,2471.3,0.7894]
[1728438178380,4.04606,2471.6,2471.3,0.7894]
[1728438178598,3.68889733,2471.7,2470.8,0.7894]
[1728438178877,4.04671,2471.2,2470.8,0.7894]
[1728438179081,4.04694,2471.0,2470.8,0.7894]
[1728438179289,8.09403,2471.0,2470.8,0.7894]
[1728438179456,4.0471,2470.9,2470.8,0.7894]
[1728438179894,4.04694,2471.0,2470.8,0.7894]
[1728438180594,4.04728,2470.8,2470.3,0.7645]
[1728438181091,4.0477,2470.6,2470.3,0.7645]
[1728438181383,4.04786,2470.5,2470.3,0.7645]
[1728438181585,4.0477,2470.6,2470.3,0.7645]
[1728438181586,8.09543,2470.6,2470.3,0.7645]
[1728438181760,4.0477,2470.6,2470.3,0.7645]
[1728438182275,4.04777,2470.5,2470.3,0.7645]
[1728438182894,8.09542,2470.6,2470.3,0.7645]
[1728438183905,4.04779,2470.5,2470.3,0.7645]
[1728438184744,4.04798,2470.4,2470.0,0.7919]
[1728438184980,8.09602,2470.4,2470.0,1.575977]
[1728438185194,8.09602,2470.4,2470.0,0.7919]
[1728438185195,4.04798,2470.4,2470.0,0.7919]
[1728438185481,4.04829,2470.2,2470.0,0.7919]
[1728438186055,7.04688,2471.1,2469.5,0.7656]
[1728438186056,4.04841,2470.1,2469.5,0.7656]
[1728438186262,4.04912,2469.7,2469.5,0.7656]
[1728438186489,4.04936,2469.6,2469.2,0.7656]
[1728438186984,7.73801733,2469.7,2469.2,0.7656]
[1728438187185,4.04946,2469.5,2469.2,0.7656]
[1728438187485,4.04959,2469.4,2469.2,0.7656]
[1728438187791,4.04973,2469.3,2468.8,0.7656]
[1728438187964,4.04973,2469.3,2468.8,1.24722]
[1728438188291,4.04946,2469.5,2468.8,5.29776]
[1728438188446,4.0496,2469.4,2468.8,1.24722]
[1728438188890,4.04973,2469.3,2468.8,1.24722]
[1728438189892,4.05006,2469.1,2468.8,0.7656]
[1728438190685,4.05006,2469.1,2468.3,4.05129]
[1728438190686,4.05023,2469.0,2468.4,0.7932]
[1728438191077,4.05047,2468.9,2468.4,0.7932]
[1728438191852,4.05055,2468.8,2468.4,0.7932]
[1728438192470,4.05055,2468.8,2468.4,3.7932]
[1728438192667,4.05055,2468.8,2468.4,0.7932]
[1728438192989,8.10123,2468.8,2468.4,0.7932]
[1728438193287,4.05072,2468.7,2468.1,4.86467]
[1728438193501,4.860673,2468.8,2468.1,0.8131]
[1728438193502,4.05089,2468.6,2468.1,0.8131]
[1728438193664,8.1019,2468.6,2468.1,0.8131]
[1728438193852,4.05089,2468.6,2468.1,0.8131]
[1728438194553,4.05105,2468.5,2468.1,0.8131]
[1728438195200,4.05089,2468.6,2467.8,0.7935]
[1728438195201,4.05123,2468.4,2467.8,0.7935]
[1728438195358,3.68889733,2468.5,2467.8,0.7935]
[1728438195552,3.68889733,2468.5,2467.5,0.7935]
[1728438195553,4.05205,2467.9,2467.5,0.7935]
[1728438195754,4.05205,2467.9,2467.1,4.05324]
[1728438195755,4.05221,2467.8,2467.2,0.7935]
[1728438196154,8.10487,2467.7,2467.2,0.7935]
[1728438196570,4.05236,2467.7,2467.2,0.7935]
[1728438196894,4.05268,2467.5,2467.2,0.7935]
[1728438197395,4.05268,2467.5,2466.9,4.05351]
[1728438197593,4.05286,2467.4,2467.0,0.7823]
[1728438197793,4.05286,2467.4,2466.7,8.10878405]
[1728438197794,4.05306,2467.3,2466.7,4.05479405]
[1728438197953,4.05306,2467.3,2466.7,4.83709405]
[1728438198156,0.810554,2467.4,2466.7,4.83699405]
[1728438198352,4.863404,2467.4,2466.8,4.05381]
[1728438198709,4.863404,2467.4,2466.7,4.83698405]
[1728438198710,4.05305,2467.3,2466.7,4.83698405]
[1728438198885,0.810554,2467.4,2466.8,4.05381]
[1728438199085,4.05273,2467.5,2466.8,4.05381]
[1728438199988,4.05285,2467.4,2466.8,4.05381]
[1728438200190,4.05243,2467.7,2466.9,4.05364]
[1728438200391,4.05243,2467.7,2466.7,0.78310405]
[1728438200392,4.0521,2467.9,2467.2,4.85022]
[1728438200626,4.47002647,2467.9,2467.2,4.85022]
[1728438201689,4.0522,2467.8,2467.2,4.85022]
[1728438202023,4.47002647,2467.9,2467.2,4.85022]
[1728438202024,0.41792647,2467.9,2467.4,4.05282]
[1728438202195,4.05187,2468.0,2467.4,4.05282]
[1728438202386,0.889767,2468.0,2467.4,4.05274]
[1728438202591,4.05175,2468.1,2467.5,4.05266]
[1728438202998,4.05175,2468.1,2467.6,0.8218]
[1728438203411,8.10359,2468.1,2467.6,0.8218]
[1728438203617,4.0519,2468.0,2467.6,0.8218]
[1728438204420,4.05175,2468.1,2467.6,0.8218]
[1728438204629,4.05158,2468.2,2467.6,4.87429]
[1728438205287,4.05158,2468.2,2467.6,5.766993]
[1728438206897,8.1029,2468.3,2467.6,9.819393]
[1728438207099,4.05142,2468.3,2467.6,5.766903]
[1728438207298,4.05142,2468.3,2467.7,7.6289103]
[1728438207722,4.05142,2468.3,2467.7,3.5766903]
[1728438208035,4.05111,2468.5,2467.9,0.7638]
[1728438208399,4.05058,2468.8,2468.2,4.05149]
[1728438208606,4.05058,2468.8,2468.3,3.0]
[1728438209061,4.05051,2468.9,2468.3,3.0]
[1728438209375,8.10159,2468.7,2468.1,3.0]
[1728438209502,4.05088,2468.6,2468.1,3.0]
[1728438209872,4.05121,2468.4,2468.0,0.774]
[1728438210142,4.05095,2468.6,2468.0,4.82581]
[1728438210542,4.05095,2468.6,2468.1,3.0]
[1728438210831,8.10195,2468.6,2468.1,3.0]
[1728438210997,4.05095,2468.6,2468.1,3.0]
[1728438211198,4.05105,2468.5,2468.1,3.0]
[1728438211499,4.05105,2468.5,2468.0,0.774]
[1728438212840,4.05095,2468.6,2468.1,4.05165]
[1728438213511,4.82559,2468.9,2468.1,4.05165]
[1728438213721,4.0508,2468.7,2468.1,4.05165]
[1728438214703,8.87619,2468.9,2468.2,4.05153]
[1728438214906,4.05059,2468.8,2468.2,4.05153]
[1728438215496,4.05059,2468.8,2468.1,4.05165]
[1728438215699,4.05076,2468.7,2468.2,3.802]
[1728438217901,4.05045,2468.9,2468.2,3.802]
[1728438218107,4.05073,2468.7,2468.2,4.7061399]
[1728438218404,4.05073,2468.7,2468.2,3.802]
[1728438218860,4.05073,2468.7,2468.2,0.802]
[1728438219140,4.05105,2468.5,2468.2,0.802]
[1728438220802,0.7851,2468.6,2467.8,3.8036]
[1728438221037,4.05147,2468.3,2467.8,7.85573]
[1728438221450,4.05147,2468.3,2467.8,3.8036]
[1728438223961,8.10297,2468.3,2467.8,3.8036]
[1728438224537,4.05147,2468.3,2467.8,0.8036]
[1728438224736,4.05165,2468.2,2467.8,0.8036]
[1728438225049,4.05147,2468.3,2467.8,4.85576]
[1728438225246,4.05112,2468.5,2467.9,4.05193]
[1728438225415,4.05112,2468.5,2467.9,8.10386]
[1728438225621,4.05112,2468.5,2467.9,4.05193]
[1728438226034,8.10227,2468.5,2467.9,4.05193]
[1728438226244,4.05112,2468.5,2467.9,4.05193]
[1728438226447,8.10227,2468.5,2467.9,4.05193]
[1728438226849,4.05122,2468.4,2467.8,1.54189404]
[1728438227053,4.05146,2468.3,2467.8,0.8036]
[1728438229265,4.05073,2468.7,2468.1,4.88348]
[1728438229425,8.10157,2468.7,2468.1,4.88348]
[1728438229830,4.05073,2468.7,2468.1,4.88348]
[1728438230052,4.05073,2468.7,2468.1,1.725432]
[1728438230367,4.05089,2468.6,2468.1,1.725432]
[1728438231530,4.05089,2468.6,2468.1,0.8319]
[1728438232480,4.05073,2468.7,2468.1,4.88357]
[1728438232664,4.05048,2468.9,2468.1,0.8319]
[1728438232865,8.10098,2468.9,2468.5,0.8008]
[1728438233064,4.05048,2468.9,2468.5,0.8008]
[1728438235043,8.10029,2469.1,2468.5,4.85182]
[1728438235226,4.05013,2469.1,2468.5,0.8008]
[1728438235425,4.04991,2469.2,2468.6,8.10163]
[1728438235630,4.0499,2469.2,2468.6,8.10154]
[1728438235832,4.0499,2469.2,2468.7,0.7857]
[1728438236165,4.04983,2469.3,2468.7,4.83631]
[1728438236682,4.04983,2469.3,2468.7,5.773537]
[1728438236840,8.09966,2469.3,2468.7,5.773537]
[1728438237045,4.04983,2469.3,2468.7,5.773537]
[1728438237463,4.04983,2469.3,2468.7,1.722927]
[1728438237684,4.04989,2469.2,2468.7,1.722927]
[1728438238045,4.04983,2469.3,2468.7,4.722927]
[1728438238264,8.09966,2469.3,2468.7,4.722927]
[1728438238457,4.05009,2469.1,2468.7,3.7857]
[1728438238685,4.05009,2469.1,2468.7,0.7857]
[1728438238988,3.6926002,2469.1,2468.7,0.7857]
[1728438239188,4.0505,2468.9,2468.4,0.7637]
[1728438239353,4.05064,2468.8,2468.4,0.7637]
[1728438240196,4.0505,2468.9,2468.4,0.7637]
[1728438241348,8.10102,2468.9,2468.4,0.7637]
[1728438241690,4.05056,2468.8,2468.4,0.7637]
[1728438241873,4.0505,2468.9,2468.4,0.7637]
[1728438242194,4.05058,2468.8,2468.4,0.7637]
[1728438242343,4.05014,2469.1,2468.4,4.81487]
[1728438242549,4.04982,2469.3,2468.6,4.05071]
[1728438242748,4.04982,2469.3,2468.7,4.496071]
[1728438242943,4.04982,2469.3,2468.7,8.546771]
[1728438243457,4.04982,2469.3,2468.7,4.496071]
[1728438243700,4.04999,2469.2,2468.7,4.496071]
[1728438244275,8.0997,2469.3,2468.7,8.546771]
[1728438245014,4.04982,2469.3,2468.7,4.496071]
[1728438245613,4.05048,2468.9,2468.5,0.8188]
[1728438245910,4.05023,2469.0,2468.5,0.8188]
[1728438246212,8.10123,2468.8,2468.5,0.8188]
[1728438246410,4.05087,2468.6,2468.5,0.8188]
[1728438246562,4.05087,2468.6,2467.9,0.4056]
[1728438246563,4.05104,2468.5,2468.1,0.817]
[1728438246763,4.05087,2468.6,2468.1,0.817]
[1728438246968,8.10186,2468.6,2468.1,0.817]
[1728438247308,4.05087,2468.6,2468.1,0.817]
[1728438247903,8.1019,2468.6,2468.1,0.817]
[1728438248203,4.05126,2468.4,2468.1,0.817]
[1728438250816,4.05066,2468.8,2468.2,4.05148]
[1728438251018,4.05049,2468.9,2468.3,4.80916]
[1728438251190,4.05049,2468.9,2468.3,5.995224]
[1728438251984,8.10097,2468.9,2468.3,5.995224]
[1728438252399,4.05056,2468.8,2468.3,4.943864]
[1728438252734,4.05048,2468.9,2468.3,4.943864]
[1728438252735,8.10098,2468.9,2468.3,8.995204]
[1728438252900,4.05048,2468.9,2468.3,8.995204]
[1728438253085,4.05048,2468.9,2468.4,4.3046624]
[1728438253486,4.05048,2468.9,2468.4,3.0]
[1728438254034,4.0509,2468.6,2468.3,0.7578]